bitfinex-derivatives/quotes_SOLF0:USTF0_20241103
["timestamp","ask_amount","ask_price","bid_price","bid_amount"]
[1730659197007,3.1421,159.19,159.15,3.1426]
[1730659197708,4.38,159.21,159.12,4.5647]
[1730659197904,4.38,159.21,159.12,1.4214]
[1730659198112,3.1423,159.18,159.14,3.1428]
[1730659198312,3.1423,159.18,159.13,10.56661442]
[1730659199214,3.1423,159.18,159.14,3.1429]
[1730659199812,10.56661442,159.22,159.12,1.4214]
[1730659200910,10.56661442,159.22,159.13,3.1431]
[1730659202007,10.56661442,159.22,159.12,1.4214]
[1730659202207,4.38,159.22,159.13,10.56661442]
[1730659202611,4.38,159.23,159.19,3.1419]
[1730659203115,3.141,159.24,159.22,3.1413]
[1730659203418,72.08185929,159.29,159.22,3.1413]
[1730659204002,72.08185929,159.29,159.19,1.3583]
[1730659204003,61.51524487,159.29,159.25,3.1407]
[1730659204205,61.51524487,159.29,159.23,10.56661442]
[1730659204408,61.51524487,159.29,159.24,1.3554]
[1730659204608,3.1396,159.31,159.27,3.1403]
[1730659204810,4.38,159.34,159.25,10.56661442]
[1730659205004,10.56661442,159.36,159.25,10.56661442]
[1730659205204,10.56661442,159.36,159.28,3.1401]
[1730659205419,10.56661442,159.36,159.25,10.56661442]
[1730659205818,10.56661442,159.36,159.3,3.1396]
[1730659205819,3.139,159.34,159.3,3.1396]
[1730659206614,3.1382,159.38,159.3,10.56661442]
[1730659206920,3.1382,159.38,159.31,1.3301]
[1730659207120,3.1382,159.38,159.34,3.139]
[1730659207512,14.94661442,159.43,159.34,3.139]
[1730659207917,3.138,159.39,159.34,3.139]
[1730659208115,10.56661442,159.43,159.32,11.97431442]
[1730659208315,10.56661442,159.43,159.32,16.35431442]
[1730659208714,10.56661442,159.41,159.32,5.7877]
[1730659209423,3.1385,159.37,159.32,8.9269]
[1730659209720,13.28441442,159.48,159.34,10.56661442]
[1730659210025,3.1372,159.44,159.36,10.56661442]
[1730659210223,3.1372,159.44,159.37,1.3734]
[1730659210827,3.1372,159.44,159.4,3.1377]
[1730659211118,3.1369,159.45,159.39,10.56661442]
[1730659211307,61.43211419,159.49,159.42,3.1373]
[1730659211722,61.43211419,159.49,159.4,1.3233]
[1730659211925,61.43211419,159.49,159.41,3.1374]
[1730659212416,3.1368,159.46,159.41,3.1374]
[1730659212627,61.43211419,159.49,159.4,1.3233]
[1730659213214,61.43211419,159.49,159.4,4.4611]
[1730659213421,3.1366,159.47,159.4,4.4611]
[1730659213718,61.43211419,159.49,159.4,4.4611]
[1730659214525,3.137,159.44,159.4,4.4611]
[1730659214725,62.78101419,159.49,159.41,3.1376]
[1730659215025,3.1368,159.46,159.41,3.1376]
[1730659215223,3.1368,159.46,159.42,3.1373]
[1730659215417,62.78101419,159.49,159.4,1.3233]
[1730659215622,3.1366,159.47,159.4,1.3233]
[1730659215821,61.43211419,159.49,159.41,10.56661442]
[1730659216324,64.56831419,159.49,159.44,3.1369]
[1730659216525,61.43211419,159.49,159.44,3.1369]
[1730659217520,61.43211419,159.49,159.4,1.3233]
[1730659217716,61.43211419,159.49,159.4,5.9033]
[1730659218427,10.56661442,159.5,159.4,5.9033]
[1730659218721,10.56661442,159.5,159.4,1.3233]
[1730659219728,3.1371,159.44,159.4,1.3233]
[1730659220122,10.56661442,159.48,159.36,10.56661442]
[1730659220430,1.3073,159.47,159.38,3.1382]
[1730659221232,1.3073,159.47,159.36,10.56661442]
[1730659221528,1.3073,159.47,159.39,3.1379]
[1730659222025,3.1374,159.43,159.36,10.56661442]
[1730659222332,10.56661442,159.48,159.36,10.56661442]
[1730659222529,11.87291442,159.48,159.36,10.56661442]
[1730659222828,11.87291442,159.48,159.38,3.138]
[1730659223130,3.1374,159.42,159.38,3.138]
[1730659223436,11.87291442,159.48,159.36,10.56661442]
[1730659223621,3.1371,159.44,159.4,3.1377]
[1730659223926,1.3063,159.48,159.38,10.56661442]
[1730659224132,4.58,159.49,159.43,3.1371]
[1730659224332,4.58,159.49,159.4,15.14661442]
[1730659224630,3.1362,159.49,159.42,10.56661442]
[1730659224833,3.1362,159.49,159.45,3.1367]
[1730659225028,3.1362,159.49,159.42,10.56661442]
[1730659225225,3.1359,159.5,159.46,3.1366]
[1730659227733,3.1359,159.5,159.42,10.56661442]
[1730659228234,3.1359,159.5,159.46,3.1365]
[1730659229122,3.1359,159.5,159.41,2.7058]
[1730659229123,10.56661442,159.5,159.41,2.7058]
[1730659229429,10.56661442,159.48,159.35,10.56661442]
[1730659229618,4.58,159.49,159.35,10.56661442]
[1730659229619,10.56661442,159.45,159.35,10.56661442]
[1730659230030,3.1375,159.42,159.38,3.138]
[1730659230330,10.56661442,159.45,159.34,4.58]
[1730659230533,3.1378,159.41,159.36,3.1384]
[1730659230729,10.56661442,159.45,159.36,3.1384]
[1730659231628,10.56661442,159.45,159.37,3.1384]
[1730659232429,61.43011076,159.51,159.4,10.56661442]
[1730659232743,61.43011076,159.51,159.42,10.56661442]
[1730659232927,3.1363,159.48,159.44,3.137]
[1730659233231,61.43011076,159.51,159.44,3.137]
[1730659233821,61.43011076,159.51,159.41,2.7545]
[1730659233822,10.56661442,159.49,159.41,2.7545]
[1730659234023,10.56661442,159.49,159.38,10.56661442]
[1730659234430,2.7487,159.5,159.38,10.56661442]
[1730659234638,2.7487,159.5,159.4,10.56661442]
[1730659234826,3.1366,159.47,159.44,3.1369]
[1730659235226,3.1366,159.47,159.42,10.56661442]
[1730659235431,3.1366,159.47,159.43,3.137]
[1730659236341,16.86689955,159.57,159.44,4.58]
[1730659236530,3.1356,159.52,159.45,16.86689955]
[1730659236732,19.59699955,159.59,159.45,16.86689955]
[1730659237133,19.59699955,159.59,159.47,3.1364]
[1730659237639,3.1362,159.49,159.42,16.86689955]
[1730659237838,3.1362,159.49,159.42,21.44689955]
[1730659238338,3.1362,159.49,159.45,3.1367]
[1730659238638,3.1362,159.49,159.42,21.44689955]
[1730659239039,3.1363,159.48,159.42,21.44689955]
[1730659239434,3.1363,159.48,159.4,4.0914]
[1730659239435,1.3376,159.54,159.43,3.1372]
[1730659239634,3.1366,159.47,159.43,3.1372]
[1730659239836,18.20449955,159.54,159.43,3.1372]
[1730659240241,18.20449955,159.54,159.4,4.0914]
[1730659240540,18.20449955,159.54,159.42,3.1374]
[1730659240742,3.1368,159.46,159.42,3.1374]
[1730659241236,3.137,159.44,159.37,16.86689955]
[1730659241440,4.6,159.49,159.37,16.86689955]
[1730659242037,4.6,159.49,159.4,3.1378]
[1730659242342,15.92419448,159.49,159.4,3.1378]
[1730659242540,3.1372,159.44,159.4,3.1378]
[1730659242847,4.6,159.49,159.34,21.46689955]
[1730659243033,26.10617926,159.49,159.34,21.46689955]
[1730659243345,10.18449119,159.48,159.38,3.1381]
[1730659243737,1.3053,159.47,159.38,3.1381]
[1730659243935,1.3053,159.47,159.34,21.46689955]
[1730659244135,21.50617926,159.48,159.4,16.86689955]
[1730659244347,3.9508,159.56,159.41,4.0901]
[1730659244542,3.1364,159.48,159.44,3.1369]
[1730659244737,25.33611114,159.56,159.44,3.1369]
[1730659244936,10.12749697,159.55,159.44,3.1369]
[1730659245135,3.1364,159.48,159.44,3.1369]
[1730659245939,14.07829697,159.56,159.41,4.0901]
[1730659246133,25.34577258,159.56,159.44,3.1369]
[1730659246345,10.12749697,159.55,159.44,3.1369]
[1730659246642,3.1364,159.48,159.44,3.1369]
[1730659246850,10.12749697,159.55,159.41,2.782]
[1730659246851,40.22497258,159.55,159.41,2.782]
[1730659247036,4.6,159.53,159.41,2.782]
[1730659247242,3.1369,159.45,159.41,2.782]
[1730659247937,3.1374,159.43,159.38,5.9569]
[1730659248938,18.83,159.59,159.42,16.86689955]
[1730659249246,1.3862,159.55,159.45,16.86689955]
[1730659249440,3.136,159.5,159.46,3.1365]
[1730659249638,3.136,159.5,159.45,16.86689955]
[1730659249840,11.53551224,159.55,159.45,16.86689955]
[1730659250241,11.53551224,159.55,159.47,3.1362]
[1730659250446,1.3862,159.55,159.45,16.86689955]
[1730659250645,3.136,159.5,159.46,3.1365]
[1730659251946,1.3862,159.55,159.44,3.1369]
[1730659251947,3.1365,159.47,159.44,3.1369]
[1730659252153,18.83,159.54,159.39,5.9357]
[1730659252347,35.69689955,159.52,159.39,1.3357]
[1730659252743,35.69689955,159.52,159.4,3.1378]
[1730659253252,10.14796043,159.51,159.4,3.1378]
[1730659253441,3.1371,159.44,159.4,3.1378]
[1730659253946,3.1371,159.44,159.41,3.1376]
[1730659259446,7.3157,159.5,159.39,1.3357]
[1730659259755,3.1375,159.42,159.39,3.1379]
[1730659261257,17.4686575,159.5,159.39,3.1379]
[1730659261258,3.1373,159.43,159.39,3.1379]
[1730659261653,17.4686575,159.5,159.39,3.1379]
[1730659262055,3.1374,159.42,159.39,3.1379]
[1730659262653,17.4686575,159.5,159.4,3.1378]
[1730659263162,3.1374,159.43,159.4,3.1378]
[1730659263364,17.4686575,159.5,159.39,3.1379]
[1730659263660,3.1366,159.47,159.37,16.86689955]
[1730659263852,1.3096,159.46,159.38,3.1382]
[1730659264256,4.32,159.45,159.33,1.3998]
[1730659264459,4.32,159.45,159.35,3.1387]
[1730659264863,3.1381,159.39,159.33,1.3998]
[1730659266161,3.1381,159.39,159.35,3.1387]
[1730659266662,3.1381,159.39,159.33,1.3998]
[1730659267954,3.1381,159.39,159.35,3.1387]
[1730659268361,23.15,159.45,159.33,1.3998]
[1730659268562,3.1385,159.37,159.33,4.5389]
[1730659269265,3.1375,159.42,159.33,4.5389]
[1730659269459,23.15,159.45,159.33,4.5389]
[1730659269659,23.15,159.45,159.32,4.4978]
[1730659269856,23.15,159.45,159.32,3.1393]
[1730659270369,3.1387,159.36,159.32,3.1393]
[1730659271062,1.3924,159.39,159.28,2.8146]
[1730659271362,23.0183,159.39,159.28,1.4088]
[1730659271576,23.0183,159.39,159.28,3.14]
[1730659271876,23.0183,159.39,159.25,16.86689955]
[1730659272068,3.1402,159.28,159.23,1.321]
[1730659272279,4.32,159.32,159.23,1.321]
[1730659273068,3.14,159.29,159.25,3.1406]
[1730659275071,3.1401,159.29,159.25,3.1406]
[1730659275570,1.4026,159.31,159.23,1.321]
[1730659275780,3.1403,159.28,159.24,3.141]
[1730659275966,1.4026,159.31,159.24,3.141]
[1730659276167,3.1405,159.27,159.23,3.1411]
[1730659276958,2.79,159.31,159.22,1.3171]
[1730659277163,3.1409,159.25,159.21,3.1415]
[1730659277884,3.1409,159.25,159.22,3.1413]
[1730659278188,3.1409,159.25,159.19,18.16749955]
[1730659278584,4.1418,159.31,159.21,3.1414]
[1730659278585,22.9718,159.31,159.21,3.1414]
[1730659278784,3.1413,159.23,159.19,1.3006]
[1730659278992,3.1413,159.23,159.16,18.21719955]
[1730659279179,4.32,159.27,159.18,3.1421]
[1730659279379,3.1415,159.22,159.18,3.1421]
[1730659280079,3.1413,159.23,159.19,3.1419]
[1730659280284,3.1413,159.23,159.16,1.3503]
[1730659280583,4.32,159.27,159.16,1.3503]
[1730659281380,3.141,159.24,159.19,3.1419]
[1730659281588,4.32,159.27,159.19,3.1419]
[1730659281988,3.1413,159.23,159.19,3.1419]
[1730659283881,3.1407,159.26,159.23,3.1411]
[1730659284080,3.1407,159.26,159.16,1.3503]
[1730659284081,65.83750868,159.29,159.22,10.56031188]
[1730659284285,65.83750868,159.29,159.2,10.56031188]
[1730659284879,3.1408,159.25,159.22,3.1414]
[1730659285274,3.1403,159.28,159.22,10.56031188]
[1730659285476,61.51750868,159.29,159.22,10.56031188]
[1730659286279,61.51750868,159.29,159.25,3.1406]
[1730659287287,3.1402,159.28,159.25,3.1406]
[1730659288689,61.51750868,159.29,159.22,10.56031188]
[1730659288879,64.65750868,159.29,159.22,10.56031188]
[1730659289278,64.65750868,159.29,159.25,3.1406]
[1730659291178,64.65750868,159.29,159.22,10.56031188]
[1730659291794,64.65750868,159.29,159.25,3.1406]
[1730659293498,64.65750868,159.29,159.24,3.1409]
[1730659293795,64.65750868,159.29,159.22,10.56031188]
[1730659293997,1.4026,159.31,159.28,3.14]
[1730659294296,1.4026,159.31,159.24,10.56031188]
[1730659294596,3.1398,159.3,159.27,3.1403]
[1730659294983,1.4026,159.31,159.29,3.14]
[1730659295184,1.4182,159.34,159.29,3.14]
[1730659295600,3.1394,159.32,159.29,3.14]
[1730659296094,3.1394,159.32,159.24,10.56031188]
[1730659296293,1.3718,159.35,159.26,10.56031188]
[1730659296495,5.4918,159.35,159.26,10.56031188]
[1730659297100,4.5107,159.35,159.31,3.1394]
[1730659297399,1.3718,159.35,159.31,3.1394]
[1730659297699,1.3718,159.35,159.26,10.56031188]
[1730659298196,3.1395,159.32,159.28,3.14]
[1730659298694,1.3718,159.35,159.28,3.14]
[1730659298695,3.1396,159.31,159.28,3.14]
[1730659298898,1.3718,159.35,159.29,3.1399]
[1730659299087,1.3718,159.35,159.26,10.56031188]
[1730659299584,1.3718,159.35,159.27,3.1402]
[1730659300185,1.3718,159.35,159.26,10.56031188]
[1730659300383,3.1397,159.31,159.28,3.1401]
[1730659301193,1.3718,159.35,159.26,10.56031188]
[1730659301789,4.5107,159.35,159.31,3.1394]
[1730659302494,4.5107,159.35,159.32,3.1393]
[1730659302696,3.1393,159.33,159.26,10.56031188]
[1730659302994,1.3718,159.35,159.24,10.56031188]
[1730659303402,1.3718,159.35,159.27,3.1403]
[1730659304000,3.14,159.29,159.26,3.1405]
[1730659310109,4.12,159.32,159.24,10.56031188]
[1730659310306,3.1397,159.31,159.28,3.1401]
[1730659310506,4.12,159.32,159.24,10.56031188]
[1730659310708,3.14,159.3,159.26,3.1405]
[1730659310906,3.14,159.3,159.24,10.56031188]
[1730659311212,4.12,159.32,159.24,10.56031188]
[1730659311408,3.1397,159.31,159.24,10.56031188]
[1730659312108,3.1398,159.3,159.27,3.1402]
[1730659312701,4.12,159.32,159.23,2.7566]
[1730659313215,3.1404,159.27,159.24,3.1409]
[1730659313412,14.68031188,159.32,159.21,10.56031188]
[1730659314108,1.4142,159.31,159.21,10.56031188]
[1730659314305,1.4142,159.31,159.23,3.141]
[1730659314306,3.1407,159.26,159.23,3.141]
[1730659314506,1.4142,159.31,159.23,3.141]
[1730659315511,1.4142,159.31,159.19,13.23781188]
[1730659315717,10.56031188,159.3,159.19,13.23781188]
[1730659316817,3.1409,159.25,159.22,3.1412]
[1730659317712,1.3062,159.29,159.19,13.23781188]
[1730659317915,3.1412,159.23,159.2,3.1416]
[1730659318613,1.3062,159.29,159.19,13.23781188]
[1730659318813,3.1407,159.26,159.22,3.1414]
[1730659319112,3.1407,159.26,159.19,13.23781188]
[1730659319317,3.1407,159.26,159.23,3.1411]
[1730659320719,3.86,159.33,159.24,10.56031188]
[1730659320924,5.2641,159.33,159.24,10.56031188]
[1730659321112,3.1401,159.29,159.26,3.1405]
[1730659321313,10.56031188,159.36,159.24,10.56031188]
[1730659321517,10.56031188,159.36,159.26,10.56031188]
[1730659321822,10.56031188,159.36,159.25,3.1406]
[1730659322116,10.56031188,159.36,159.24,10.56031188]
[1730659322709,10.56031188,159.33,159.23,3.86]
[1730659322907,10.56031188,159.31,159.21,10.56031188]
[1730659323106,10.56031188,159.31,159.23,3.1411]
[1730659323310,11.92891188,159.31,159.19,13.23781188]
[1730659323520,1.3798,159.3,159.19,13.23781188]
[1730659323715,3.1412,159.23,159.19,13.23781188]
[1730659324820,14.42031188,159.27,159.17,3.1422]
[1730659325016,1.4002,159.26,159.17,3.1422]
[1730659325717,3.1415,159.22,159.17,3.1422]
[1730659327419,3.1416,159.21,159.17,3.1422]
[1730659329127,1.4002,159.26,159.17,10.56031188]
[1730659329325,3.1408,159.25,159.21,3.1414]
[1730659329628,1.4002,159.26,159.17,10.56031188]
[1730659330022,10.56031188,159.29,159.17,10.56031188]
[1730659330222,1.3798,159.3,159.2,10.56031188]
[1730659330526,11.92891188,159.31,159.23,3.141]
[1730659330527,3.1406,159.26,159.23,3.141]
[1730659330725,3.1406,159.26,159.2,10.56031188]
[1730659331114,3.1406,159.26,159.22,3.1412]
[1730659331419,3.86,159.29,159.2,10.56031188]
[1730659331923,3.1404,159.27,159.23,3.141]
[1730659332111,3.86,159.3,159.22,10.56031188]
[1730659332516,3.1403,159.28,159.24,3.1409]
[1730659332712,3.86,159.3,159.24,3.1409]
[1730659333012,3.86,159.3,159.22,10.56031188]
[1730659333221,3.1402,159.28,159.25,3.1407]
[1730659334624,3.14,159.29,159.22,10.56031188]
[1730659335325,3.1402,159.28,159.24,3.1408]
[1730659338632,3.86,159.31,159.24,3.1408]
[1730659338926,3.86,159.31,159.25,3.1407]
[1730659339927,3.1403,159.28,159.25,3.1407]
[1730659340129,3.1403,159.28,159.24,3.1409]
[1730659340937,3.14,159.29,159.24,3.1409]
[1730659341228,3.14,159.29,159.21,2.8098]
[1730659341229,14.42031188,159.31,159.21,2.8098]
[1730659341625,3.1414,159.22,159.19,3.1418]
[1730659341821,3.86,159.26,159.18,10.56031188]
[1730659342229,3.1416,159.21,159.18,13.70231188]
[1730659342626,3.86,159.26,159.15,17.25031188]
[1730659342833,3.1419,159.2,159.16,3.1425]
[1730659343637,10.56031188,159.24,159.15,16.53301188]
[1730659345232,3.1421,159.19,159.15,16.53301188]
[1730659345430,10.56031188,159.24,159.15,13.39031188]
[1730659345736,10.56031188,159.22,159.13,10.56031188]
[1730659345928,10.56031188,159.22,159.09,5.183]
[1730659345929,3.1427,159.16,159.11,1.3763]
[1730659346129,3.86,159.21,159.11,1.3763]
[1730659346723,3.1429,159.15,159.11,1.3763]
[1730659347141,3.1429,159.15,159.11,4.5198]
[1730659347433,3.86,159.21,159.11,1.3763]
[1730659348038,3.1429,159.15,159.11,1.3763]
[1730659348740,3.1429,159.15,159.11,4.5198]
[1730659351541,3.1421,159.18,159.14,3.1428]
[1730659353036,3.1428,159.15,159.11,11.93661188]
[1730659353237,10.56031188,159.2,159.11,1.3763]
[1730659354145,3.1428,159.15,159.11,4.5198]
[1730659359452,3.64,159.16,159.06,10.56031188]
[1730659359751,15.57741188,159.15,159.04,10.56031188]
[1730659359946,3.64,159.14,159.04,10.56031188]
[1730659360150,10.56031188,159.13,159.04,10.56031188]
[1730659361652,10.56031188,159.13,159.06,3.1445]
[1730659362058,3.1439,159.09,159.06,3.1445]
[1730659362553,10.56031188,159.11,159.02,14.52161188]
[1730659362853,10.56031188,159.13,159.02,14.52161188]
[1730659363152,3.64,159.14,159.04,10.56031188]
[1730659363540,3.1435,159.12,159.08,3.144]
[1730659363949,3.64,159.14,159.06,10.56031188]
[1730659364147,3.1433,159.13,159.08,3.144]
[1730659364341,3.64,159.14,159.08,3.144]
[1730659364747,3.1432,159.13,159.08,3.144]
[1730659365043,3.92,159.14,159.08,3.144]
[1730659365542,1.3771,159.15,159.06,10.56031188]
[1730659365543,3.92,159.15,159.06,10.56031188]
[1730659366448,3.1435,159.12,159.08,3.1441]
[1730659366647,3.92,159.15,159.06,10.56031188]
[1730659367156,14.48031188,159.15,159.04,10.56031188]
[1730659367557,1.33,159.14,159.04,10.56031188]
[1730659367758,3.1442,159.08,159.04,13.70511188]
[1730659368263,11.94031188,159.13,159.04,3.1448]
[1730659368456,3.1437,159.11,159.04,3.1448]
[1730659368664,3.92,159.1,159.03,3.1449]
[1730659368959,3.92,159.1,159.02,13.20081188]
[1730659369158,7.0639,159.1,159.05,3.1446]
[1730659369357,3.92,159.1,159.02,10.56031188]
[1730659370556,3.1442,159.08,159.04,3.1449]
[1730659370763,3.92,159.1,159.02,10.56031188]
[1730659371155,3.1439,159.09,159.05,3.1447]
[1730659371356,3.92,159.1,159.02,10.56031188]
[1730659371869,3.92,159.1,159.05,3.1446]
[1730659372363,3.144,159.09,159.05,3.1446]
[1730659373259,3.92,159.1,159.05,3.1446]
[1730659373463,3.1441,159.08,159.05,3.1446]
[1730659374665,3.92,159.1,159.02,10.56031188]
[1730659374860,7.0638,159.1,159.06,3.1444]
[1730659375258,7.0638,159.1,159.06,9.9060414]
[1730659375259,3.92,159.1,159.06,9.9060414]
[1730659375464,3.1439,159.09,159.06,9.9060414]
[1730659376169,3.92,159.1,159.07,3.1442]
[1730659376363,3.92,159.1,159.06,6.7616414]
[1730659378074,3.92,159.1,159.08,9.9056414]
[1730659378269,3.1435,159.12,159.08,9.9056414]
[1730659378673,1.38,159.13,159.08,9.9056414]
[1730659378877,3.1436,159.11,159.08,9.9056414]
[1730659380376,6.7616414,159.17,159.09,6.7616414]
[1730659380576,6.7616414,159.17,159.03,3.92]
[1730659380577,6.7616414,159.18,159.12,6.7616414]
[1730659380779,6.7616414,159.22,159.15,6.7616414]
[1730659380983,64.68865099,159.21,159.17,6.7616414]
[1730659381175,61.54705099,159.21,159.17,6.7616414]
[1730659381478,64.68865099,159.21,159.17,9.9039414]
[1730659381781,61.54705099,159.21,159.17,6.7616414]
[1730659383486,3.1418,159.2,159.16,3.1425]
[1730659384069,3.1418,159.2,159.15,3.1427]
[1730659384277,3.1418,159.2,159.13,10.56458373]
[1730659384777,3.1418,159.2,159.15,3.1426]
[1730659385390,3.1418,159.2,159.16,3.1425]
[1730659386279,64.68865099,159.21,159.17,3.1423]
[1730659388278,61.54705099,159.21,159.18,3.142]
[1730659388677,61.54705099,159.21,159.15,10.56458373]
[1730659388869,10.56458373,159.29,159.18,10.56458373]
[1730659389182,5.2943,159.3,159.2,10.56458373]
[1730659389378,3.1402,159.28,159.24,3.1409]
[1730659389681,2.7853,159.33,159.23,10.56458373]
[1730659389877,3.92,159.32,159.23,10.56458373]
[1730659390075,2.7853,159.33,159.23,10.56458373]
[1730659390076,3.1398,159.3,159.23,10.56458373]
[1730659390276,5.2942,159.33,159.23,10.56458373]
[1730659390786,3.1403,159.28,159.23,13.70568373]
[1730659390991,3.1403,159.28,159.23,10.56458373]
[1730659391680,3.1396,159.31,159.26,3.1404]
[1730659391881,1.3742,159.33,159.26,3.1404]
[1730659392285,3.1396,159.31,159.26,3.1404]
[1730659392689,3.1397,159.31,159.26,3.1404]
[1730659392986,1.3742,159.33,159.26,3.1404]
[1730659393693,3.1396,159.31,159.27,3.1402]
[1730659393884,1.311,159.38,159.27,3.1402]
[1730659393885,72.04379339,159.39,159.27,10.56458373]
[1730659394090,3.92,159.38,159.28,2.6974]
[1730659394294,10.56458373,159.36,159.28,2.6974]
[1730659395194,3.1397,159.31,159.28,2.6974]
[1730659395784,10.56458373,159.36,159.28,2.6974]
[1730659395785,3.1394,159.32,159.28,2.6974]
[1730659397292,3.14,159.29,159.24,3.92]
[1730659397498,10.56458373,159.32,159.24,3.92]
[1730659398002,10.56458373,159.32,159.2,10.56458373]
[1730659398189,10.56458373,159.29,159.2,3.82]
[1730659398393,3.1412,159.23,159.2,3.82]
[1730659398605,3.1412,159.23,159.19,2.8203]
[1730659398993,10.56458373,159.27,159.19,2.8203]
[1730659399393,3.82,159.28,159.16,36.39947173]
[1730659399394,10.56458373,159.25,159.16,36.39947173]
[1730659400686,3.1417,159.21,159.16,36.39947173]
[1730659401799,10.56458373,159.25,159.16,36.39947173]
[1730659403501,3.1418,159.2,159.16,36.39947173]
[1730659404401,3.1418,159.2,159.14,13.32238373]
[1730659404607,3.1422,159.18,159.14,13.32238373]
[1730659404812,10.56458373,159.22,159.14,2.7578]
[1730659405113,3.1422,159.18,159.14,2.7578]
[1730659405293,10.56458373,159.22,159.14,2.7578]
[1730659406200,3.1421,159.19,159.14,2.7578]
[1730659408307,10.56458373,159.22,159.14,2.7578]
[1730659408507,3.1422,159.18,159.14,2.7578]
[1730659409906,10.56458373,159.22,159.14,2.7578]
[1730659410097,3.1425,159.17,159.14,2.7578]
[1730659413303,3.1426,159.16,159.14,2.7578]
[1730659413513,6.75598978,159.2,159.14,2.7578]
[1730659413696,6.75598978,159.17,159.1,6.75598978]
[1730659413903,3.1431,159.13,159.1,6.75598978]
[1730659415114,6.75598978,159.15,159.09,6.75598978]
[1730659415300,6.75598978,159.15,159.07,6.528]
[1730659415301,14.38215863,159.18,159.07,6.528]
[1730659415705,14.38215863,159.18,159.07,2.708]
[1730659415905,10.56215863,159.16,159.07,2.708]
[1730659416506,3.1441,159.09,159.07,2.708]
[1730659417604,3.1441,159.08,159.07,2.708]
[1730659417800,11.93065863,159.16,159.04,14.38215863]
[1730659418411,1.3451,159.15,159.04,14.38215863]
[1730659418909,10.56215863,159.13,159.04,3.82]
[1730659419105,14.38215863,159.13,159.04,3.82]
[1730659420108,3.1447,159.05,159.04,3.82]
[1730659420511,3.1447,159.05,159.02,13.31895863]
[1730659421106,14.38215863,159.13,159.02,13.31895863]
[1730659421312,3.145,159.04,159.02,13.31895863]
[1730659422508,3.1448,159.05,159.02,13.31895863]
[1730659424814,10.56215863,159.11,158.99,14.18215863]
[1730659425012,1.3605,159.1,158.99,10.56215863]
[1730659425418,10.56215863,159.08,158.98,4.9364]
[1730659425614,3.62,159.07,158.98,4.9364]
[1730659425820,3.62,159.07,158.98,1.3164]
[1730659427605,10.56215863,159.06,158.95,14.18215863]
[1730659428112,3.1463,158.97,158.95,14.18215863]
[1730659428512,3.1463,158.97,158.95,10.56215863]
[1730659431017,3.1465,158.96,158.95,10.56215863]
[1730659432314,3.1468,158.95,158.93,3.62]
[1730659432522,3.62,159.02,158.93,3.62]
[1730659433108,3.62,159.02,158.95,10.56215863]
[1730659433306,3.62,159.02,158.97,10.56215863]
[1730659433520,11.91405863,159.08,158.97,10.56215863]
[1730659433719,3.1457,159.0,158.97,10.56215863]
[1730659435022,10.56215863,159.06,158.95,10.56215863]
[1730659435420,16.85155863,159.06,158.95,10.56215863]
[1730659435623,16.85155863,159.06,158.92,6.4408]
[1730659435624,3.1465,158.96,158.93,10.56215863]
[1730659436419,3.1458,159.0,158.93,10.56215863]
[1730659436624,3.62,159.02,158.93,10.56215863]
[1730659436932,3.1469,158.94,158.93,10.56215863]
[1730659437531,3.1468,158.95,158.93,10.56215863]
[1730659438131,3.62,159.02,158.93,10.56215863]
[1730659439322,3.1469,158.94,158.93,10.56215863]
[1730659439627,3.62,159.02,158.93,10.56215863]
[1730659440134,3.1465,158.97,158.93,10.56215863]
[1730659440835,3.1465,158.96,158.93,10.56215863]
[1730659441221,10.56215863,159.02,158.92,1.4109]
[1730659441635,4.9603,159.03,158.93,10.56215863]
[1730659442026,3.1464,158.97,158.93,10.56215863]